{"text_format":"1","workbook":"xlsx","n_sheets":3,"sheets":["Instructions","Proposal","VariableData"],"not_rendered":{"charts":0,"images":1,"macros":1,"external_links":0,"defined_names":25,"comments":0,"pivot_tables":0},"unopened":[],"bounds":{"document_bytes":16777216,"sheet_cells":100000,"rows_first":2000,"rows_last":500,"rows_between":2000,"halvings":0,"cell_chars":16384,"cell_head_chars":4096},"cells_cut":0,"cells_raw":0,"read":"whole","date_system":"1900"}

{"sheet":"Instructions","index":0,"n_rows":1,"n_cols":1,"rows_kept":1,"cut":false,"hidden":true,"merged":[[1,0,54,9],[0,0,0,9]]}
["INSTRUCTIONS"]

{"sheet":"Proposal","index":1,"n_rows":302,"n_cols":15,"rows_kept":302,"cut":false,"hidden":false,"merged":[[255,0,301,0],[29,1,29,10],[32,1,32,13],[35,1,36,14],[110,1,110,2],[106,3,106,5],[82,5,82,6],[82,11,82,14],[81,1,81,2],[88,1,88,3],[88,6,88,10],[105,3,105,5],[87,11,87,14],[79,7,79,10],[84,1,84,14],[104,3,104,5],[70,0,77,0],[91,0,99,0],[160,0,198,0],[199,0,223,0],[152,1,158,14],[47,1,47,14],[184,12,184,14],[103,8,103,13],[80,11,80,14],[80,5,80,6],[69,0,69,14],[78,0,82,0],[116,0,123,0],[137,0,137,14],[149,0,149,14],[115,0,115,14],[124,0,124,14],[107,8,107,13],[111,8,111,13],[86,4,86,5],[86,1,86,3],[108,1,108,2],[90,0,90,14],[86,6,86,10],[89,11,89,14],[110,3,110,5],[104,8,104,13],[81,5,81,6],[79,5,79,6],[79,11,79,14],[81,11,81,14],[210,1,210,2],[216,12,216,14],[210,12,210,14],[209,3,209,5],[203,7,203,8],[209,7,209,8],[208,7,208,8],[197,3,197,5],[109,8,109,13],[166,9,166,10],[170,12,170,14],[166,12,166,14],[172,9,172,10],[167,7,167,8],[171,9,171,10],[169,12,169,14],[107,3,107,5],[109,3,109,5],[103,3,103,5],[81,7,81,10],[88,11,88,14],[106,1,106,2],[230,10,230,11],[229,12,229,14],[192,3,192,5],[190,9,190,10],[207,3,207,5],[203,3,203,5],[226,1,226,14],[203,9,203,10],[185,9,185,10],[230,8,230,9],[185,7,185,8],[185,12,185,14],[221,7,221,8],[188,3,188,5],[202,3,202,5],[213,7,213,8],[212,3,212,5],[210,3,210,5],[213,3,213,5],[204,12,204,14],[173,7,173,8],[174,3,174,5],[168,1,168,2],[174,1,174,2],[17,10,17,13],[18,1,18,3],[159,0,159,14],[18,5,18,7],[56,0,62,0],[71,1,71,12],[73,1,77,14],[66,1,66,14],[72,1,72,14],[170,3,170,5],[166,7,166,8],[101,1,101,14],[104,1,104,2],[114,8,114,13],[112,3,112,5],[114,1,114,2],[114,3,114,5],[163,1,163,14],[19,1,19,7],[88,4,88,5],[167,3,167,5],[128,1,128,14],[162,1,162,14],[165,7,165,8],[168,3,168,5],[167,9,167,10],[113,8,113,13],[112,1,112,2],[113,3,113,5],[165,3,165,5],[165,9,165,10],[165,12,165,14],[166,3,166,5],[140,1,140,14],[139,1,139,14],[116,1,116,14],[126,1,127,14],[167,12,167,14],[224,0,246,0],[231,12,231,14],[231,8,231,11],[194,12,194,14],[254,0,254,14],[230,1,230,3],[0,0,0,14],[138,0,148,0],[141,1,148,14],[229,1,229,3],[217,12,217,14],[223,10,223,14],[183,9,183,10],[218,12,218,14],[219,12,219,14],[229,8,229,10],[228,6,228,7],[227,6,227,8],[221,12,221,14],[188,12,188,14],[187,12,187,14],[209,12,209,14],[12,4,12,14],[16,6,16,7],[243,10,243,14],[243,1,243,5],[236,12,236,14],[241,12,241,14],[232,8,232,11],[233,8,233,11],[234,8,234,11],[1,0,3,0],[260,1,261,14],[83,0,89,0],[125,0,136,0],[100,0,114,0],[215,12,215,14],[215,9,215,10],[214,7,214,8],[220,9,220,10],[57,1,57,10],[27,1,27,14],[44,0,47,0],[17,0,19,0],[14,1,14,2],[37,0,43,0],[243,6,243,9],[245,6,245,9],[240,1,240,11],[241,3,241,6],[238,12,238,14],[237,8,237,9],[236,8,236,9],[238,3,238,5],[239,3,239,5],[237,3,237,5],[242,6,242,9],[242,10,242,14],[236,3,236,5],[247,0,253,0],[189,7,189,8],[189,9,189,10],[197,7,197,8],[197,9,197,10],[241,8,241,9],[240,12,240,14],[239,12,239,14],[237,10,237,11],[238,10,238,11],[237,12,237,14],[245,10,245,14],[239,8,239,9],[239,10,239,11],[236,10,236,11],[238,8,238,9],[201,9,201,10],[235,12,235,14],[227,12,227,14],[228,12,228,14],[248,1,248,10],[250,1,253,14],[249,9,249,14],[246,10,246,14],[232,12,232,14],[233,12,233,14],[234,12,234,14],[39,4,39,6],[39,1,39,3],[41,1,41,14],[40,1,40,6],[129,1,136,14],[111,3,111,5],[86,11,86,14],[105,8,105,13],[108,3,108,5],[173,9,173,10],[168,12,168,14],[198,3,198,5],[190,7,190,8],[195,7,195,8],[196,3,196,5],[200,3,200,5],[230,12,230,14],[219,7,219,8],[164,3,164,5],[180,3,180,5],[189,3,189,5],[2,1,2,2],[2,3,2,4],[3,3,3,4],[14,8,16,14],[14,3,14,5],[16,3,16,5],[14,6,14,7],[5,1,5,14],[6,1,6,3],[3,10,3,12],[2,10,2,12],[6,4,6,14],[8,6,8,14],[10,3,10,4],[10,1,10,2],[12,1,12,3],[10,7,10,14],[184,3,184,5],[235,8,235,9],[221,3,221,5],[206,3,206,5],[194,3,194,5],[207,9,207,10],[204,3,204,5],[216,3,216,5],[235,3,235,5],[222,3,222,5],[191,3,191,5],[218,3,218,5],[200,12,200,14],[199,12,199,14],[178,3,178,5],[198,12,198,14],[190,3,190,5],[196,7,196,8],[179,3,179,5],[185,3,185,5],[182,12,182,14],[178,12,178,14],[191,12,191,14],[192,12,192,14],[193,12,193,14],[196,12,196,14],[197,12,197,14],[196,9,196,10],[195,12,195,14],[184,7,184,8],[195,3,195,5],[195,9,195,10],[184,9,184,10],[178,7,178,8],[178,9,178,10],[179,7,179,8],[213,12,213,14],[221,9,221,10],[202,12,202,14],[186,12,186,14],[203,12,203,14],[201,7,201,8],[202,9,202,10],[189,12,189,14],[208,3,208,5],[205,12,205,14],[206,12,206,14],[214,12,214,14],[214,3,214,5],[220,3,220,5],[201,12,201,14],[219,9,219,10],[220,12,220,14],[202,7,202,8],[201,3,201,5],[211,12,211,14],[190,12,190,14],[191,7,191,8],[191,9,191,10],[209,9,209,10],[301,7,301,14],[222,12,222,14],[214,9,214,10],[207,12,207,14],[208,9,208,10],[208,12,208,14],[207,7,207,8],[213,9,213,10],[258,1,258,14],[256,1,257,14],[249,1,249,8],[244,1,246,5],[246,6,246,9],[262,1,300,14],[220,7,220,8],[223,6,223,9],[212,12,212,14],[227,1,227,2],[215,3,215,5],[215,7,215,8],[219,3,219,5],[235,10,235,11],[228,8,228,10],[225,1,225,14],[177,3,177,5],[183,3,183,5],[176,12,176,14],[172,12,172,14],[174,12,174,14],[171,12,171,14],[172,3,172,5],[171,7,171,8],[177,9,177,10],[177,7,177,8],[183,12,183,14],[181,12,181,14],[179,9,179,10],[183,7,183,8],[182,3,182,5],[176,3,176,5],[172,7,172,8],[177,12,177,14],[179,12,179,14],[180,12,180,14],[173,12,173,14],[171,3,171,5],[173,3,173,5],[175,12,175,14],[63,0,68,0],[24,1,24,14],[63,8,63,10],[63,11,63,14],[65,1,65,14],[64,1,64,10],[63,1,63,3],[50,1,50,14],[55,1,55,14],[45,1,46,9],[48,0,55,0],[67,11,67,14],[68,11,68,14],[67,1,68,10],[21,1,21,3],[23,5,23,12],[23,13,23,14],[21,13,22,14],[22,1,22,3],[23,1,23,3],[21,5,21,10],[30,1,31,14],[43,1,43,14],[18,8,19,14],[216,1,216,2],[222,1,222,2],[186,3,186,5],[4,0,10,0],[259,1,259,14],[255,1,255,14],[91,1,91,14],[94,1,99,14],[92,1,93,14],[119,1,123,14],[117,1,117,14],[150,0,158,0],[150,1,150,14],[180,1,180,2],[186,1,186,2],[192,1,192,2],[198,1,198,2],[204,1,204,2],[11,0,16,0],[25,0,36,0],[20,0,24,0],[60,1,62,14],[38,1,38,10]]}
["PROPOSAL DETAILS"]
["A"]
[null,"REVISION",null,null,null,null,null,null,"DATE  "]
[null,null,null,{"$f":"IF(D3=\"\",\"Enter 0 if initial version\",\"\")","v":"Enter 0 if initial version"},null,null,null,null,null,null,{"$f":"IF(L3=\"\",\"yyyy-mm-dd\",\"\")","v":"yyyy-mm-dd"}]
["B"]
[null,"Professional Engineer of Record"]
[null,"NAME (Individual)"]
[]
[null,"LEGAL NAME OF CONSULTING FIRM"]
[]
[null,"PHONE",null,null,null,null,"EMAIL"]
["C"]
[null,"Customer Name:"]
[]
[null,"Site Name:",null,null,null,null,"Site Address:"]
[]
[null,"Site Type"]
["D"]
[null,"Sector category:",null,null,{"$f":"IF(F19=\"\",\"Select >>\",\"\")","v":"Select >>"}]
[null,"For more information go to www.bchydro.com/powersmart"]
["E"]
[null,"Type of study:",null,null,{"$f":"IF(OR(Type_of_study=\"\",Type_of_study=VariableData!I7),\"Select >>\",\"\")","v":"Select >>"},null,null,null,null,null,null,null,null,"Character Count"]
[]
[null,"Study Title:",null,null,{"$f":"IF(F24=\"\",\"Enter >>\",\"\")","v":"Enter >>"},null,null,null,null,null,null,null,null,{"$f":"LEN(F24)","v":0}]
[null,"Enter a title up to 40 characters long using owner, organization, site name, system, and/or location."]
["F"]
[null,"P.Eng is a registered member or licensee of APEGBC?",null,null,null,null,null,null,null,null,null,null,"YES",null,"NO "]
[null,{"$f":"IF( AND(NOT(VariableData!C2),VariableData!D2),\"THIS PROPOSAL MAY NOT QUALIFY FOR FUNDING\",\"\")","v":""}]
[null,"Is each individual consultant taking part in this study registered with BC Hydro Power Smart Alliance (PSA) ?"]
[null,{"$f":"IF(AND(NOT(VariableData!C3), VariableData!D3),\"ALL CONSULTANTS MUST BE INDIVIDUALLY REGISTERED WITH PSA\",\"\")","v":""},null,null,null,null,null,null,null,null,null,null,"YES",null,"NO "]
[null,{"$f":"IF(AND(NOT(VariableData!$C$3),VariableData!$D$3,VariableData!$F$2),\"IF INDIVIDUALS IDENTIFIED ON THIS PROPOSAL ARE NOT REGISTERED OR APPROVED, THEIR RESUME MUST BE ATTACHED AND SUBMITTED ALONG WITH A SCHEDULE I - FORM OF CONSENT AS PART OF THIS APPLICATION\",\"\")","v":""}]
[]
[null,"Is the individual responsible for the contents of the study familiar with PS requirements and guidelines?"]
[null,null,null,null,null,null,null,null,null,null,null,null,"YES",null,"NO "]
[null,null,null,null,null,null,null,null,null,null,null,null,null,null,{"$f":"IF(VariableData!$D$4,\"Studies with an improper scope or have a signing authority without relevant experience will have to be resubmitted\",\"\")","v":""}]
[null,{"$f":"IF(OR(VariableData!$D$2,VariableData!$D$3,VariableData!$D$4),\"For more information contact Steve Quon for Industrial at 604 623-4596 or Tanya Perewernycky for Commercial at 604-623-4593.\",\"\")","v":""}]
[]
["G"]
[null,"Is a BC Hydro Key Account Manager (KAM) in support of this study?     "]
[null,"KAM name:",null,null,null,null,null,null,null,null,null,null,"YES",null,"NO "]
[]
[null,"Has Power Smart Alliance (PSA) and Engineering (PSE) been consulted in the preparation of this proposal?"]
[null,null,null,null,null,null,null,null,null,null,null,null,"YES",null,"NO "]
[null,{"$f":"IF(AND(NOT(VariableData!C7),VariableData!D7),\"It is recommended that PSE and PSA be consulted while developing this study proposal \nPlease email alliance@bchydro.com for more details.\",\"\")","v":""}]
["H"]
[null,"Does the subject of this study involve a potential energy saving exceeding 50,000 kWh per year?",null,null,null,null,null,null,null,null,null,null,"YES",null,"NO "]
[]
[null,{"$f":"IF(AND(NOT(VariableData!C5), VariableData!D5),\"SAVINGS NOT SUFFICIENT TO QUALIFY FOR FUNDING\",\"\")","v":""}]
["I"]
[null,"Does this study include savings from a lighting component?",null,null,null,null,null,null,null,null,null,null,"YES",null,"NO "]
[null,{"$f":"IF(VariableData!C8,\"Complete the BC Hydro Lighting Opportunity Assessment Tool and submit with proposal\",\"\")","v":""}]
[null,"Does this Industrial study include a commercial-mechanical component? (i.e. HVAC)",null,null,null,null,null,null,null,null,null,null,"YES",null,"NO "]
[null,null,null,null,null,null,null,null,null,null,null,null,null,null,{"$f":"IF(VariableData!$C$9,\"Contact PSA at alliance@bchydro.com before completing this proposal\",\"\")","v":""}]
[null,"Does this study include savings from information technology?",null,null,null,null,null,null,null,null,null,null,"YES",null,"NO "]
[null,"Information technology includes servers, computers, and peripherals."]
[null,{"$f":"IF(AND(VariableData!C10,NOT(VariableData!D10)),\"For more information on IT related studies, email PSA at alliance@bchydro.com\",\"\")","v":""}]
["J"]
[null,"Are you aware of any prior energy studies that relate to the system being studied?",null,null,null,null,null,null,null,null,null,null,"YES",null,"NO "]
[null,"Before completing this section, consult with the owner / customer."]
[null,{"$f":"IF(VariableData!$C$12,\"List prior energy related studies or energy conservation activities at the site.\",\"\")","v":""}]
[]
[]
[]
["K"]
[null,"I have read the minimum requirements for an energy study found in the following: ",null,null,null,null,null,null,null,null,null,null,"YES",null,"NO "]
[null,{"$f":"IF(VariableData!$F$2,(IF(VariableData!$H$5,VariableData!$J$2,IF(VariableData!$H$4,VariableData!$J$4,IF(VariableData!$H$3,VariableData!$J$12,\"\")))),VariableData!$J$6)","v":"BCH-QMS-9462-C-042_Unified Revised ES Requirements "}]
[null,{"$f":"IF(VariableData!C8,VariableData!J10,\"\")","v":""}]
[null,{"$f":"IF(AND(NOT(VariableData!C11), VariableData!D11),\"For more information or copies of the documents visit the commercial or industrial section of the Power Smart website\",\"\")","v":""},null,null,null,null,null,null,null,null,null,{"$f":"IF(AND(NOT(VariableData!C11), VariableData!D11),HYPERLINK(\"http://www.bchydro.com/powersmart/alliance/program/psp-commercial.html\",\"PSA Commercial\"),\"\")","v":""}]
[null,null,null,null,null,null,null,null,null,null,null,{"$f":"IF(AND(NOT(VariableData!C11), VariableData!D11),HYPERLINK(\"http://www.bchydro.com/powersmart/alliance/program/psp-industrial.html\",\"PSA Industrial\"),\"\")","v":""}]
["SYSTEM DESCRIPTION"]
["L"]
[null,"Description of each system to be studied and known issues:"]
[null,"Include equipment type, size, hours of operation, and describe any known problem areas"]
[]
[]
[]
[]
[]
["M",{"$f":"IF(OR(VariableData!$F$4,VariableData!$F$3,VariableData!$C$8,VariableData!$C$9),\"\",\"This section is for studies with a commercial or lighting component only.  Please skip\")","v":"This section is for studies with a commercial or lighting component only.  Please skip"}]
[null,null,null,null,{"$f":"IF(OR(VariableData!$F$4,VariableData!$F$3,VariableData!$C$8,VariableData!$C$9),\"Year Built:\",\"\")","v":""},null,null,{"$f":"IF(OR(VariableData!$F$4,VariableData!$F$3,VariableData!$C$8,VariableData!$C$9),\"Year Renovated:\",\"\")","v":""}]
[null,{"$f":"IF(OR(VariableData!$F$4,VariableData!$F$3,VariableData!$C$8,VariableData!$C$9),\"Floorspace\",\"\")","v":""},null,null,null,{"$f":"IF(AND(OR(VariableData!$F$4,VariableData!$F$3,VariableData!$C$8,VariableData!$C$9),Year_Built=\"\"),\"yyyy\",\"\")","v":""},null,null,null,null,null,{"$f":"IF(AND(OR(VariableData!$F$4,VariableData!$F$3,VariableData!$C$8,VariableData!$C$9),Year_Renovated=\"\"),\"yyyy\",\"\")","v":""}]
[null,{"$f":"IF(OR(VariableData!$F$4,VariableData!$F$3,VariableData!$C$8,VariableData!$C$9),\"area units:\",\"\")","v":""},null,null,{"$f":"IF(OR(VariableData!$F$4,VariableData!$F$3,VariableData!$C$8,VariableData!$C$9),\"Total area:\",\"\")","v":""},null,null,{"$f":"IF(OR(VariableData!$F$4,VariableData!$F$3,VariableData!$C$8,VariableData!$C$9),\"Area to be Studied:\",\"\")","v":""}]
[null,null,null,null,null,{"$f":"IF(AND(OR(VariableData!$F$4,VariableData!$F$3,VariableData!$C$8,VariableData!$C$9),VariableData!$S$3),\"square feet\",IF(AND(OR(VariableData!$F$4,VariableData!$F$3,VariableData!$C$8,VariableData!$C$9),VariableData!$S$2),\"square metres\",\"\"))","v":""},null,null,null,null,null,{"$f":"IF(AND(OR(VariableData!$F$4,VariableData!$F$3,VariableData!$C$8,VariableData!$C$9),VariableData!$S$3),\"square feet\",IF(AND(OR(VariableData!$F$4,VariableData!$F$3,VariableData!$C$8,VariableData!$C$9),VariableData!$S$2),\"square metres\",\"\"))","v":""}]
["N"]
[null,{"$f":"IF(OR(VariableData!$F$3,VariableData!$H$3,VariableData!$C$9),\"Energy consumption:\",\"This section is for commercial-mechanical or PWA studies only.  Please skip\")","v":"This section is for commercial-mechanical or PWA studies only.  Please skip"}]
[]
[null,{"$f":"IF(OR(VariableData!F3,VariableData!H3,VariableData!$C$9),\"Fuel Type:\",\"\")","v":""},null,null,null,null,{"$f":"IF(OR(VariableData!$F$3,VariableData!$H$3,VariableData!$C$9),\"Annual Fuel Consumption:\",\"\")","v":""}]
[null,null,null,"",null,null,null,null,null,null,null,{"$f":"IF(E89=\"\",\"\",E89)","v":""}]
[null,{"$f":"IF(OR(VariableData!F3,VariableData!H3,VariableData!$C$9),\"Consumption Units:\",\"\")","v":""},null,null,null,null,{"$f":"IF(OR(VariableData!$F$3,VariableData!$H$3,VariableData!$C$9),\"Annual Electricity Consumption:\",\"\")","v":""}]
[null,null,null,null,null,null,null,null,null,null,null,{"$f":"IF(OR(VariableData!$F$3,VariableData!$H$3,VariableData!$C$9),\"kWh/y\",\"\")","v":""}]
["SYSTEM BOUNDARY"]
["O","Identify the portion of the site and/or the boundary containing the systems to be studied:"]
[null,"Attach a diagram, with submission, if useful to illustrate the boundary of the scope, analysis, and significant interactions with adjacent systems and equipment:"]
[]
[]
[]
[]
[]
[]
[]
["P"]
[null,"Identify all technologies that are to be included in the scope of study:"]
[null,{"$f":"IF(AND(D104=\"\",D106=\"\",D108=\"\",D110=\"\",D112=\"\",D114=\"\",I104=\"\",I106=\"\",I108=\"\",I110=\"\",I112=\"\",I114=\"\"),\"Select all that apply from drop down lists.\",\"Select all that apply.\")","v":"Select all that apply from drop down lists."}]
[null,"",1,null,null,null,"",7]
[null,{"$f":"IF(D104=\"other\",\"Specify >\",\"\")","v":""},null,"",null,null,null,{"$f":"IF(I104=\"other\",\"Specify >\",\"\")","v":""},""]
[null,null,2,null,null,null,"",8]
[null,{"$f":"IF(D106=\"other\",\"Specify >\",\"\")","v":""},null,"",null,null,null,{"$f":"IF(I106=\"other\",\"Specify >\",\"\")","v":""},""]
[null,"",3,null,null,null,"",9]
[null,{"$f":"IF(D108=\"other\",\"Specify >\",\"\")","v":""},null,"",null,null,null,{"$f":"IF(I108=\"other\",\"Specify >\",\"\")","v":""},""]
[null,"",4,null,null,null,"",10]
[null,{"$f":"IF(D110=\"other\",\"Specify >\",\"\")","v":""},null,"",null,null,null,{"$f":"IF(I110=\"other\",\"Specify >\",\"\")","v":""},""]
[null,"",5,null,null,null,"",11]
[null,{"$f":"IF(D112=\"other\",\"Specify >\",\"\")","v":""},null,"",null,null,null,{"$f":"IF(I112=\"other\",\"Specify >\",\"\")","v":""},""]
[null,"",6,null,null,null,"",12]
[null,{"$f":"IF(D114=\"other\",\"Specify >\",\"\")","v":""},null,null,null,null,null,{"$f":"IF(I114=\"other\",\"Specify >\",\"\")","v":""}]
["BASELINE DETERMINATION"]
["Q"]
[null,"How will the baseline energy consumption for each proposed ECM be determined or measured?"]
[null,"DDC data, flow measurements, calculated estimates, billing data, etc"]
[]
[]
[]
[]
[]
["OPPORTUNITY IDENTIFICATION AND  EVALUATION"]
["R"]
[null,"How do you propose to identify energy saving opportunities and evaluate the cost and benefit of each?  Furthermore, indicate if you plan to evaluate any specific, known, or recommended ECMs"]
[]
[null,"e.g. tour the plant, talk to operators, right-size the system, consider standards, etc"]
[]
[]
[]
[]
[]
[]
[]
[]
["RECOMMENDED OPPORTUNITIES"]
["S"]
[null,"What are the anticpated energy savings [kWh/yr] for the overall project and, if known, describe anticipated ECMs to be studied"]
[null,"To complete this section, familiarity with the plant and equipment is required"]
[]
[]
[]
[]
[]
[]
[]
[]
["METHODS OF VERIFICATION AND MEASUREMENT"]
["T","Briefly describe how the energy savings would be verified?"]
[null,"Include known facts and assumptions, and identify any metering equipment required"]
[]
[]
[]
[]
[]
[]
[]
["FEES AND EXPENSES"]
["U"]
[null,"Fees for professional services (Note: fees for travel time may not be applicable in all cases)"]
[null,"Make multiple selections for any consultant or sub-consultant applying multiple areas of expertise."]
[null,"Do not include PST or GST for fees for professional services and travel time."]
[null,"Name  (1)",null,null,null,null,null,"Hours",null,"Rate ($/hour)"]
[null,"Role:",null,null,null,null,"On-site:",null,null,null,null,"$",{"$f":"H166*J166","v":0}]
[null,"Expertise:",null,null,null,null,"Office:",null,null,null,null,"$",{"$f":"H167*J167","v":0}]
[null,null,null,null,null,null,"Travel:",null,null,null,null,"$",{"$f":"H168*J168","v":0}]
[null,"If other, describe:"]
[]
[null,"Name  (2)",null,null,null,null,null,"Hours",null,"Rate ($/hour)"]
[null,"Role:",null,null,null,null,"On-site:",null,null,null,null,"$",{"$f":"H172*J172","v":0}]
[null,"Expertise:",null,null,null,null,"Office:",null,null,null,null,"$",{"$f":"H173*J173","v":0}]
[null,null,null,null,null,null,"Travel:",null,null,null,null,"$",{"$f":"H174*J174","v":0}]
[null,"If other, describe:"]
[]
[null,"Name  (3)",null,null,null,null,null,"Hours",null,"Rate ($/hour)"]
[null,"Role:",null,null,null,null,"On-site:",null,null,null,null,"$",{"$f":"H178*J178","v":0}]
[null,"Expertise:",null,null,null,null,"Office:",null,null,null,null,"$",{"$f":"H179*J179","v":0}]
[null,null,null,null,null,null,"Travel:",null,null,null,null,"$",{"$f":"H180*J180","v":0}]
[null,"If other, describe:"]
[]
[null,"Name  (4)",null,null,null,null,null,"Hours",null,"Rate ($/hour)"]
[null,"Role:",null,null,null,null,"On-site:",null,null,null,null,"$",{"$f":"H184*J184","v":0}]
[null,"Expertise:",null,null,null,null,"Office:",null,null,null,null,"$",{"$f":"H185*J185","v":0}]
[null,null,null,null,null,null,"Travel:",null,null,null,null,"$",{"$f":"H186*J186","v":0}]
[null,"If other, describe:"]
[]
[null,"Name  (5)",null,null,null,null,null,"Hours",null,"Rate ($/hour)"]
[null,"Role:",null,null,null,null,"On-site:",null,null,null,null,"$",{"$f":"H190*J190","v":0}]
[null,"Expertise:",null,null,null,null,"Office:",null,null,null,null,"$",{"$f":"H191*J191","v":0}]
[null,null,null,null,null,null,"Travel:",null,null,null,null,"$",{"$f":"H192*J192","v":0}]
[null,"If other, describe:"]
[]
[null,"Name  (6)",null,null,null,null,null,"Hours:",null,"Rate ($/hour):"]
[null,"Role:",null,null,null,null,"On-site:",null,null,null,null,"$",{"$f":"H196*J196","v":0}]
[null,"Expertise:",null,null,null,null,"Office:",null,null,null,null,"$",{"$f":"H197*J197","v":0}]
[null,null,null,null,null,null,"Travel:",null,null,null,null,"$",{"$f":"H198*J198","v":0}]
[null,"If other, describe:"]
["U"]
[null,"Name  (7)",null,null,null,null,null,"Hours",null,"Rate ($/hour)"]
[null,"Role:",null,null,null,null,"On-site:",null,null,null,null,"$",{"$f":"H202*J202","v":0}]
[null,"Expertise:",null,null,null,null,"Office:",null,null,null,null,"$",{"$f":"H203*J203","v":0}]
[null,null,null,null,null,null,"Travel:",null,null,null,null,"$",{"$f":"H204*J204","v":0}]
[null,"If other, describe:"]
[]
[null,"Name  (8)",null,null,null,null,null,"Hours",null,"Rate ($/hour)"]
[null,"Role:",null,null,null,null,"On-site:",null,null,null,null,"$",{"$f":"H208*J208","v":0}]
[null,"Expertise:",null,null,null,null,"Office:",null,null,null,null,"$",{"$f":"H209*J209","v":0}]
[null,null,null,null,null,null,"Travel:",null,null,null,null,"$",{"$f":"H210*J210","v":0}]
[null,"If other, describe:"]
[]
[null,"Name  (9)",null,null,null,null,null,"Hours",null,"Rate ($/hour)"]
[null,"Role:",null,null,null,null,"On-site:",null,null,null,null,"$",{"$f":"H214*J214","v":0}]
[null,"Expertise:",null,null,null,null,"Office:",null,null,null,null,"$",{"$f":"H215*J215","v":0}]
[null,null,null,null,null,null,"Travel:",null,null,null,null,"$",{"$f":"H216*J216","v":0}]
[null,"If other, describe:"]
[]
[null,"Name (10)",null,null,null,null,null,"Hours",null,"Rate ($/hour)"]
[null,"Role:",null,null,null,null,"On-site:",null,null,null,null,"$",{"$f":"H220*J220","v":0}]
[null,"Expertise:",null,null,null,null,"Office:",null,null,null,null,"$",{"$f":"H221*J221","v":0}]
[null,null,null,null,null,null,"Travel:",null,null,null,null,"$",{"$f":"H222*J222","v":0}]
[null,"If other, describe:"]
[null,null,null,null,null,null,"  Subtotal for fees:  $ ",null,null,null,{"$f":"SUM(M166:O222)","v":0}]
["V","Estimated Expenses"]
[null,"Expenses are not to include alcohol, gifts, contingencies or markups - reimbursed with receipts at actual cost."]
[null,"Meals are charged on a per diem, do not include meal receipts."]
[null,"Air fare for",null,null,"persons, at",null,"$ per person:",null,null,null,null,"$",{"$f":"D228*F228","v":0}]
[null,"Car rental",null,null,null,"days, at",null,null,"$ per day:",null,null,null,{"$f":"E229*G229","v":0}]
[null,"Mileage",null,null,null,"km, at",null,0.53500000000000003,{"$f":"IF(VariableData!P2, \"$ per unit\", IF(VariableData!P3, VariableData!R3, VariableData!R4))","v":"$ per km:"},null,null,null,{"$f":"E230*H230","v":0}]
[null,"Accommodation",null,null,null,"persons & ",null,"days, at",null,null,"$ per day:",null,{"$f":"E231*G231*I231","v":0}]
[null,"All Meals for",null,null,"persons &",null,"days, at",null,"$ per person per day:",null,null,null,{"$f":"D232*F232*H232","v":0}]
[null,"Breakfast for",null,null,"persons &",null,"days, at",null,"$ per person per day:",null,null,null,{"$f":"D233*F233*H233","v":0}]
[null,"Lunch for",null,null,"persons &",null,"days, at",null,"$ per person per day:",null,null,null,0]
[null,"Dinner for",null,null,"persons &",null,"days, at",null,"$ per person per day:",null,null,null,0]
[null,"Rental of",null,"(enter name of rented equipment)",null,null,null,"days, at",null,null,"$ per day:",null,{"$f":"G236*I236","v":0}]
[null,"Rental of",null,"(enter name of rented equipment)",null,null,null,"days, at",null,null,"$ per day:",null,{"$f":"G237*I237","v":0}]
[null,"Rental of",null,"(enter name of rented equipment)",null,null,null,"days, at",null,null,"$ per day:",null,{"$f":"G238*I238","v":0}]
[null,"Rental of",null,"(enter name of rented equipment)",null,null,null,"days, at",null,null,"$ per day:",null,{"$f":"G239*I239","v":0}]
[null,"Rental of",null,"(enter name of rented equipment)",null,null,null,"days, at",null,null,"$ per day:",null,{"$f":"G240*I240","v":0}]
[null,"If rental basis for item not daily, enter description and total rental cost below"]
[null,"Description",null,null,null,null,null,"Total $",null,null,null,null,{"$f":"I242","v":0}]
[null,"Use attachments if extra space is required.",null,null,null,null,"Subtotal for Expenses:  $",null,null,null,{"$f":"SUM(M228:M242)","v":0}]
[null,{"$f":"IF(K246<>0,\"Provide description of additional charges:\",\"\")","v":""}]
[]
[null,null,null,null,null,null,"Additional charges: $"]
[null,null,null,null,null,null,"Total Excluding Taxes: ",null,null,null,{"$f":"SUM(K224,K243,K246)","v":0}]
["W"]
[null,"Scope and cost of proposed study includes all required instrumentation, testing,",null,null,null,null,null,null,null,null,null,null,"YES",null,"NO "]
[null,"current and historical data collection, and on-site staff.",null,null,null,null,null,null,null,{"$f":"IF(AND(VariableData!D13,NOT(VariableData!C13)),\"If NO, enter explanation below\",\"\")","v":""}]
[]
[]
[]
[]
["ADDITIONAL INFORMATION"]
["X"]
[null,"If desired, use this section to enter additional information about the consultant, customer or this request. For example, enter any existing customer project numbers, and/or information about deliverables, proposed study schedule, assumptions, clarifications, exclusions, etc. "]
[]
[null,"Please list any attached files, including consultant version of proposal for study and any supporting documents. Please save the final version of this Proposal form in PDF format."]
[null,"Please save the final version of this Proposal form in PDF format."]
[null,"To enter a line break, press alt + Enter."]
[]
[]
[]
[]
[]
[]
[]
[]
[]
[]
[]
[]
[]
[]
[]
[]
[]
[]
[]
[]
[]
[]
[]
[]
[]
[]
[]
[]
[]
[]
[]
[]
[]
[]
[]
[]
[]
[]
[]
[]
[null,"BCH-QMS-9462-D-020-rev030               2015-04-01"]

{"sheet":"VariableData","index":2,"n_rows":68,"n_cols":39,"rows_kept":68,"cut":false,"hidden":true,"merged":[[0,38,1,38],[0,22,0,23],[0,15,0,17],[0,5,0,6],[0,18,0,19],[0,13,0,14],[0,7,0,8],[0,35,0,37],[0,30,1,30],[0,31,1,31],[0,32,0,34],[0,29,1,29],[0,28,1,28],[0,27,1,27],[0,26,1,26]]}
["Checkbox","CB","T","F","Site Type","Subject Category",null,"Type of Study",null,"Documents and references","Tech Scope","Roles","Expertise","Power Smart Alliance",null,"Mileage units",null,null,"Floorspace area units",null,"Fuel type","Consumption units","Drop Down Menus",null,null,null,"#","Name","Role","Expertise","Qualified by PSE","CV reviewed by PSE","Hours",null,null,"Rate ($ / Hr)",null,null,"Total"]
["P Eng in good standing",null,{"$f":"IF(VariableData!B2=1, TRUE, FALSE)","v":false},{"$f":"IF(VariableData!B2=2, TRUE, FALSE)","v":false},"Agro Industry",{"$f":"Sector_Category=G2","v":false},"Industrial",{"$f":"Type_of_study=VariableData!I2","v":true},null,"BCH-QMS-9462-C-001-GuidelinesforIndEnergyEfficiencyFeasibilityStudy","Fans and Blowers","Architect","Compressed Air","604 623-4596","Steve Quon",{"$f":"IF(Proposal!F230=VariableData!Q2, TRUE, FALSE)","v":false},"miles, at","$ per mile:",{"$f":"IF(Proposal!D82=T2,TRUE,FALSE)","v":false},"Sq. m","  Not applicable","  GJ","Subject Category","=VariableData!$C$2:$C$5",null,null,null,null,null,null,null,null,"Onsite","Office","Travel","Onsite","Office","Travel"]
["Registered with PSA",null,{"$f":"IF(VariableData!B3=1, TRUE, FALSE)","v":false},{"$f":"IF(VariableData!B3=2, TRUE, FALSE)","v":false},"Cement Products",{"$f":"Sector_Category=G3","v":false},"Commercial - Mechanical",{"$f":"Type_of_study=VariableData!I3","v":false},"Plant Wide Audit","BCH-QMS-9462-C-021-AdaptiveStreetLightingStudyRequirements","Heat Recovery Systems","Cost Estimator","Compressed Gas","604-623-4593","Tanya Perewernycky",{"$f":"IF(Proposal!F230=VariableData!Q3, TRUE, FALSE)","v":true},"km, at","$ per km:",{"$f":"IF(Proposal!D82=T3,TRUE,FALSE)","v":false},"Sq. Ft.","  Natural Gas","  litres","Lighting Retrofit","=IF(AND(VariableData!$V$7,NOT(VariableData!$W$7)),VariableData!$G$2:$G$3,VariableData!$E$2)",null,null,1,null,"Project Manager / Coordinator","Process Cooling / Refrigeration",null,null,2,6,3,123,124,123,{"$f":"AG3*AJ3+AH3*AK3+AI3*AL3","v":1359}]
["Familiar with PSA",null,{"$f":"IF(VariableData!B4=1,TRUE,FALSE)","v":false},{"$f":"IF(VariableData!B4=2, TRUE, FALSE)","v":false},"Chemical",{"$f":"Sector_Category=G4","v":false},"Lighting Only",{"$f":"Type_of_study=VariableData!I4","v":false},"End Use Assessment","BCH-QMS-9462-C-022-GuidelinesForIndEnduseAssessment","HVAC","Graphic Arts / Drafting","Electrical - I.T",null,null,{"$f":"IF(OR(P2,P3),FALSE,TRUE)","v":false},"units, at","$ per unit:",null,null,"  Oil","  Lbs","Type of Study","=IF(VariableData!$F$5,VariableData!$I$3:$I$5,IF(Subject_Category=\"\",\"\",VariableData!$I$6:$I$6))",null,null,2,null,null,null,null,null,null,null,null,null,null,null,{"$f":"AG4*AJ4+AH4*AK4+AI4*AL4","v":0}]
["Exceeds 50 MWh",null,{"$f":"IF(VariableData!B5=1,TRUE,FALSE)","v":false},{"$f":"IF(VariableData!B5=2, TRUE, FALSE)","v":false},"Convention Centre",{"$f":"Sector_Category=G5","v":false},"Information Technology Only",{"$f":"Type_of_study=VariableData!I5","v":false},"Energy Efficiency Feasibility Study","BCH-QMS-9462-C-037-ReqsforIndEnergyEfficiencyFeasStudy-Fans-Blowers","Lighting, industrial","Project Manager / Coordinator","Fans and Blowers",null,null,null,null,null,null,null,"  Propane","  Mbtu","Floorspace area units","=IF(OR(VariableData!B4,VariableData!F2,VariableData!F3),VariableData!$S$2:$S$3,VariableData!E2)",null,null,3,null,null,null,null,null,null,null,null,null,null,null,0]
["KAM in support",null,{"$f":"IF(VariableData!B6=1, TRUE, FALSE)","v":false},{"$f":"IF(VariableData!B6=2, TRUE, FALSE)","v":false},"Court House",null,null,{"$f":"Type_of_study=VariableData!I6","v":false},"New Plant Design (NPD)","BCH-QMS-9462-C-042_Unified Revised ES Requirements ","Materials Handling","Modeling Specialist","Heat Recovery Systems",null,null,null,null,null,null,null,"  Steam","  cubic metres","Fuel Type","=IF(VariableData!B4,VariableData!$X$2:$X$6,VariableData!$E$2)",null,null,4,null,null,null,null,null,null,null,null,null,null,null,0]
["PSA PSE Consulted",null,{"$f":"IF(VariableData!B7=1, TRUE, FALSE)","v":false},{"$f":"IF(VariableData!B7=2, TRUE, FALSE)","v":false},"Data Centre",null,null,{"$f":"Type_of_study=VariableData!I7","v":false},"Energy Study","BCH-QMS-9462-C-048-RequirementsforanIndustrialEndUseAssessment-Pumps","Motors and Drives","Lead Consultant","HVAC",null,null,null,null,null,null,null,null,null,"Consumption Units","=IF(AND(VariableData!$B$4,FuelType<>VariableData!X2),VariableData!$Y$2:$Y$6,VariableData!$E$2)",null,null,5,null,null,null,null,null,null,null,null,null,null,null,0]
["Lighting Component",null,{"$f":"IF(VariableData!B8=1, TRUE, FALSE)","v":false},{"$f":"IF(VariableData!B8=2, TRUE, FALSE)","v":false},"Dining, Bar/Lounge/Leisure",null,null,null,"All Fuels Evaluation","BCH-QMS-9462-C-049-GuidelinesforIndEnergyEfficiencyFeasibilityStudy-Pumps","Power Generation Systems","Civil Engineer","Lighting, industrial",null,null,null,null,null,null,null,null,null,"Technologies","=IF(VariableData!$F$5,VariableData!$L$2:$L$17,IF(OR(VariableData!$F$2,VariableData!$F$3),VariableData!$L$28:$L$31,IF(VariableData!$F$4,VariableData!$L$18:$L$27,L2:L31)))",null,null,6,null,null,null,null,null,null,null,null,null,null,null,0]
["Commercial Component",null,{"$f":"IF(VariableData!B9=1, TRUE, FALSE)","v":false},{"$f":"IF(VariableData!B9=2, TRUE, FALSE)","v":false},"Dining, Cafeteria/Fast Food",null,null,null,"New Mine Electrical Efficiency Evaluation","BCH-QMS-9462-C-050-ReqMechPulpPlantWideEnergyAudit","Process Controls","Civil Technologist","Materials Handling",null,null,null,null,null,null,null,null,null,"Roles","=IF(VariableData!$F$5,VariableData!$O$2:$O$20,IF(VariableData!$F$4,VariableData!$O$12:$O$20,IF(OR(VariableData!$F$2,VariableData!$F$3),VariableData!$O$15:$O$20,VariableData!$O$2:$O$20)))",null,null,7,null,null,null,null,null,null,null,null,null,null,null,0]
["IT Savings",null,{"$f":"IF(VariableData!B10=1, TRUE, FALSE)","v":false},{"$f":"IF(VariableData!B10=2, TRUE, FALSE)","v":false},"Dining, Family",null,null,null,"Customer Site Investigation","BCH-QMS-9462-C-060-MinimumReqforIndLightingStudy","Process Cooling / Refrigeration","Process Engineer","Motors and Drives",null,null,null,null,null,null,null,null,null,"Expertise","=IF(VariableData!$F$5,VariableData!$P$2:$P$24,IF(VariableData!$F$4,VariableData!$P$25:$P$36,IF(OR(VariableData!$F$2,VariableData!$F$3),VariableData!$P$37:$P$40,VariableData!$P$2:$P$24)))",null,null,8,null,null,null,null,null,null,null,null,null,null,null,0]
["Required readings",null,{"$f":"IF(VariableData!B11=1, TRUE, FALSE)","v":false},{"$f":"IF(VariableData!B11=2, TRUE, FALSE)","v":false},"Dormitory",null,null,null,"Energy Monitoring and Targeting Project","BCH-QMS-9462-C-063-GuidelinesforIndEnergyEfficiencyFeasibilityStudy-Refrigeration","Process Heating","Technical Writer","Power Generation Systems",null,null,null,null,null,null,null,null,null,null,null,null,null,9,null,null,null,null,null,null,null,null,null,null,null,0]
["Previous studies",null,{"$f":"IF(VariableData!B12=1, TRUE, FALSE)","v":false},{"$f":"IF(VariableData!B12=2, TRUE, FALSE)","v":false},"Exercise Centre",null,null,null,"Plant Wide Audit Level II","BCH-QMS-9462-C-066 GuidelinesForAnIndustrialPlant-wideEnergyAudit","Pulping System, mechanical","Lead Mechanical Engineer","Process Controls",null,null,null,null,null,null,null,null,null,null,null,null,null,10,null,null,null,null,null,null,null,null,null,null,null,0]
["Required scope",null,{"$f":"IF(VariableData!B13=1, TRUE, FALSE)","v":false},{"$f":"IF(VariableData!B13=2, TRUE, FALSE)","v":false},"Food and Beverage",null,null,null,null,"BCH-QMS-9462-D-009-SpecificESrequirements","Pumps, general purpose","Mechanical Engineer","Process Cooling / Refrigeration"]
[null,null,null,null,"Forestry",null,null,null,null,"Study Requirements set out in the Sustainable Communities DE Application","Pumps, hydraulic","Mechanical Technologist","Process Heating"]
[null,null,null,null,"Gymnasium",null,null,null,null,"Study Requirements set out in the Sustainable Communities DE Application","Pumps, slurry and waste","Certified Energy Manager","Pulping System, mechanical",null,null,null,null,null,null,null,null,null,null,null,null,null,null,{"$f":"\"Does this \"&IF(VariableData!F2,\"industrial \",IF(VariableData!F4,\"lighting only \",IF(VariableData!F5,\"IT only \",\"energy \")))&\"study include \"&IF(VariableData!F2,\"a commercial-mechanical\",IF(OR(VariableData!F4,VariableData!F5),\"a mechanical\",\"a non-standard\"))&\" component?\"","v":"Does this energy study include a non-standard component?"}]
[null,null,null,null,"Health Care/Clinic",null,null,null,null,"Study Requirements set out in the proposal application for an Industrial NPD","Pumps, vacuum","Customer staff or agent","Pumps, general purpose"]
[null,null,null,null,"High School",null,null,null,null,null,"Transformers, distribution","Electrical Engineer","Pumps, hydraulic"]
[null,null,null,null,"Hospital",null,null,null,null,null,"Other","Electrical Technologist","Pumps, slurry and waste"]
[null,null,null,null,"Hotel",null,null,null,null,null,"Lighting, commercial","Engineer-in-Training","Pumps, vacuum"]
[null,null,null,null,"Ice Arena",null,null,null,null,null,"Lighting, street","Other","Transformers, distribution"]
[null,null,null,null,"Institutional",null,null,null,null,null,"Transformers, distribution",null,"Drawings and Documentation"]
[null,null,null,null,"Laboratory/Research",null,null,null,null,null,"Domestic Water Systems",null,"Project Coordination"]
[null,null,null,null,"Large Grocery",null,null,null,null,null,"Heating Systems",null,"Technical Writing"]
[null,null,null,null,"Library",null,null,null,null,null,"Refrigeration / Food Prep. Systems",null,"Other"]
[null,null,null,null,"Lumber and wood Products ",null,null,null,null,null,"Ventilation / Auxiliaries Systems",null,"Control Systems"]
[null,null,null,null,"Manufacturing",null,null,null,null,null,"Cooling Systems",null,"Domestic Water Systems"]
[null,null,null,null,"Manufacturing Facility",null,null,null,null,null,"Heat Recovery Systems",null,"Electrical - I.T"]
[null,null,null,null,"Metal Products",null,null,null,null,null,"Other",null,"Heating Systems"]
[null,null,null,null,"Mining",null,null,null,null,null,"Lighting, commercial",null,"Lighting, commercial"]
[null,null,null,null,"Miscellaneous Space",null,null,null,null,null,"Lighting, street",null,"Lighting, street"]
[null,null,null,null,"Motel",null,null,null,null,null,"Transformers, electric distribution",null,"Transformers, distribution"]
[null,null,null,null,"Motion Picture Theatre",null,null,null,null,null,"Other",null,"Refrigeration / Food Prep Systems"]
[null,null,null,null,"Museum",null,null,null,null,null,"Advanced Energy Office",null,"Ventilation / Auxiliaries Systems"]
[null,null,null,null,"Nursing Home",null,null,null,null,null,"Building Envelope",null,"Cooling Systems"]
[null,null,null,null,"Office",null,null,null,null,null,"Compressed Air",null,"Heat Recovery Systems"]
[null,null,null,null,"Oil and Gas",null,null,null,null,null,"Custom Lighting",null,"Other"]
[null,null,null,null,"Penitentiary",null,null,null,null,null,"Data Server Virtualization",null,"Lighting, commercial"]
[null,null,null,null,"Performing Arts Theatre",null,null,null,null,null,"Demo Project",null,"Lighting, street"]
[null,null,null,null,"Plastic and rubber Products",null,null,null,null,null,"Domestic Hot Water",null,"Transformers, distribution"]
[null,null,null,null,"Police/Fire Station",null,null,null,null,null,"Fans and Blowers",null,"Other"]
[null,null,null,null,"Post Office",null,null,null,null,null,"Food Preparation Retrofit"]
[null,null,null,null,"Primary School",null,null,null,null,null,"Green IT"]
[null,null,null,null,"Printing",null,null,null,null,null,"Green Motors Initiatives"]
[null,null,null,null,"Pulp and Paper",null,null,null,null,null,"High Bay Lighting"]
[null,null,null,null,"Religious Institutional",null,null,null,null,null,"HVAC"]
[null,null,null,null,"Retail - large",null,null,null,null,null,"HVAC Operations and Maintenance"]
[null,null,null,null,"Retail - small",null,null,null,null,null,"Lighting"]
[null,null,null,null,"Shopping Mall",null,null,null,null,null,"Load Displacement - Bio-Gas"]
[null,null,null,null,"Specialty Shop/Space",null,null,null,null,null,"Load Displacement - Biomass"]
[null,null,null,null,"Sports Arena",null,null,null,null,null,"Load Displacement - Geothermal"]
[null,null,null,null,"Storage and Warehousing",null,null,null,null,null,"Load Displacement - Hydro"]
[null,null,null,null,"Swimming Pool",null,null,null,null,null,"Load Displacement - Natural Gas"]
[null,null,null,null,"Transport Terminal",null,null,null,null,null,"Load Displacement - Process Heat (no incremental fuel)"]
[null,null,null,null,"Transportation",null,null,null,null,null,"Load Displacement - Renewable Natural Gas"]
[null,null,null,null,"University/College",null,null,null,null,null,"Load Displacement - Solar"]
[null,null,null,null,"Warehouse",null,null,null,null,null,"Load Displacement - Waste Hydrogen Gas"]
[null,null,null,null,"Warehouse, Refrigerated",null,null,null,null,null,"Load Displacement - Wind"]
[null,null,null,null,"Water and wastewater treatment",null,null,null,null,null,"Other"]
[null,null,null,null,"Workshop",null,null,null,null,null,"Other"]
[null,null,null,null,"Other",null,null,null,null,null,"Outdoor Lighting"]
[null,null,null,null,"Multiple Sites",null,null,null,null,null,"Process"]
[null,null,null,null,null,null,null,null,null,null,"Process"]
[null,null,null,null,null,null,null,null,null,null,"Pumps"]
[null,null,null,null,null,null,null,null,null,null,"Pumps"]
[null,null,null,null,null,null,null,null,null,null,"Refrigeration"]
[null,null,null,null,null,null,null,null,null,null,"Refrigeration"]
[null,null,null,null,null,null,null,null,null,null,"Retrocommissioning"]
[null,null,null,null,null,null,null,null,null,null,"Workplace Conservation"]